[Event "Early-Titled-Tuesday-Blitz-April-23-2024"]
[Site "Chess.com"]
[Date "2024.04.23"]
[Round "2"]
[White "amylazy"]
[Black "Fantastic_Power"]
[Result "1/2-1/2"]
[WhiteElo "2446"]
[BlackElo "2731"]
[TimeControl "180+1"]
[EndTime "8:19:44 PDT"]
[Termination "Game drawn - insufficient material"]

1. d4 {[%clk 0:03:00.9]} 1... Nf6 {[%clk 0:03:00.1]} 2. Nf3 {[%clk 0:02:59.2]}
2... e6 {[%clk 0:03:00]} 3. e3 {[%clk 0:02:58.5]} 3... c5 {[%clk 0:02:54.9]} 4.
Bd3 {[%clk 0:02:59]} 4... Nc6 {[%clk 0:02:54.7]} 5. O-O {[%clk 0:02:59.1]} 5...
Qc7 {[%clk 0:02:53.9]} 6. c4 {[%clk 0:02:58.3]} 6... Bd6 {[%clk 0:02:51.8]} 7.
Nc3 {[%clk 0:02:55]} 7... a6 {[%clk 0:02:51.6]} 8. h3 {[%clk 0:02:51.3]} 8...
Rg8 {[%clk 0:02:48.1]} 9. d5 {[%clk 0:02:51.2]} 9... Ne7 {[%clk 0:02:38.8]} 10.
e4 {[%clk 0:02:49.6]} 10... Ng6 {[%clk 0:02:38.9]} 11. Re1 {[%clk 0:02:41.7]}
11... Ne5 {[%clk 0:02:35.3]} 12. Nxe5 {[%clk 0:02:41.1]} 12... Bxe5 {[%clk
0:02:36.2]} 13. Ne2 {[%clk 0:02:31.8]} 13... g5 {[%clk 0:02:34.9]} 14. Bd2
{[%clk 0:01:54.7]} 14... h5 {[%clk 0:02:31.4]} 15. Bc3 {[%clk 0:01:54.5]} 15...
g4 {[%clk 0:02:26.6]} 16. h4 {[%clk 0:01:50.9]} 16... Bxc3 {[%clk 0:02:20]} 17.
Nxc3 {[%clk 0:01:50.2]} 17... e5 {[%clk 0:01:55.8]} 18. Ne2 {[%clk 0:01:44.7]}
18... d6 {[%clk 0:01:54.9]} 19. Ng3 {[%clk 0:01:43.9]} 19... Rh8 {[%clk
0:01:49.4]} 20. Qd2 {[%clk 0:01:36.4]} 20... Qe7 {[%clk 0:01:44.1]} 21. b4
{[%clk 0:01:30.8]} 21... Qc7 {[%clk 0:01:29.5]} 22. bxc5 {[%clk 0:01:30.2]}
22... Qxc5 {[%clk 0:01:30.4]} 23. Qg5 {[%clk 0:01:23.5]} 23... Ke7 {[%clk
0:01:27.5]} 24. Rab1 {[%clk 0:01:19]} 24... b6 {[%clk 0:01:15.8]} 25. Kh2 {[%clk
0:00:57.3]} 25... Bd7 {[%clk 0:01:13.8]} 26. Rf1 {[%clk 0:00:56.4]} 26... Rhg8
{[%clk 0:01:08.7]} 27. Qd2 {[%clk 0:00:53.8]} 27... Rg6 {[%clk 0:01:02.6]} 28.
Qb2 {[%clk 0:00:50.1]} 28... Rb8 {[%clk 0:01:00.6]} 29. Rbe1 {[%clk 0:00:39.1]}
29... Bc8 {[%clk 0:00:30.5]} 30. Nf5+ {[%clk 0:00:38.8]} 30... Bxf5 {[%clk
0:00:27.3]} 31. exf5 {[%clk 0:00:39.7]} 31... Rgg8 {[%clk 0:00:28.2]} 32. g3
{[%clk 0:00:38]} 32... Kd7 {[%clk 0:00:22.5]} 33. Qd2 {[%clk 0:00:26.6]} 33...
Qd4 {[%clk 0:00:16.7]} 34. Qh6 {[%clk 0:00:20.6]} 34... Ke7 {[%clk 0:00:14.3]}
35. Re3 {[%clk 0:00:19]} 35... Rh8 {[%clk 0:00:13.8]} 36. Qg5 {[%clk 0:00:18.8]}
36... Rbg8 {[%clk 0:00:14.2]} 37. Qf4 {[%clk 0:00:16.5]} 37... Qxf4 {[%clk
0:00:09]} 38. gxf4 {[%clk 0:00:17.4]} 38... Nd7 {[%clk 0:00:09.8]} 39. fxe5
{[%clk 0:00:16.1]} 39... Nxe5 {[%clk 0:00:10.7]} 40. Be2 {[%clk 0:00:16]} 40...
Kf6 {[%clk 0:00:09.9]} 41. Kg3 {[%clk 0:00:16.5]} 41... Rc8 {[%clk 0:00:10.3]}
42. Rc1 {[%clk 0:00:15.9]} 42... Rc5 {[%clk 0:00:10.7]} 43. Rb3 {[%clk
0:00:15.9]} 43... Rb8 {[%clk 0:00:09.7]} 44. Rcb1 {[%clk 0:00:14.9]} 44... Nxc4
{[%clk 0:00:08.5]} 45. Bxc4 {[%clk 0:00:13.4]} 45... Rxc4 {[%clk 0:00:09.4]} 46.
Rxb6 {[%clk 0:00:14.3]} 46... Rxb6 {[%clk 0:00:08]} 47. Rxb6 {[%clk 0:00:15.2]}
47... Ke5 {[%clk 0:00:04.1]} 48. Rxa6 {[%clk 0:00:15.5]} 48... Rc3+ {[%clk
0:00:04.7]} 49. Kg2 {[%clk 0:00:15.4]} 49... Kxd5 {[%clk 0:00:05.4]} 50. Ra7
{[%clk 0:00:15.3]} 50... f6 {[%clk 0:00:05.2]} 51. Rh7 {[%clk 0:00:15.8]} 51...
Ke4 {[%clk 0:00:05.8]} 52. Rxh5 {[%clk 0:00:16.3]} 52... d5 {[%clk 0:00:06.5]}
53. Rh8 {[%clk 0:00:15.7]} 53... d4 {[%clk 0:00:06.8]} 54. Re8+ {[%clk
0:00:16.3]} 54... Kxf5 {[%clk 0:00:06.7]} 55. Rd8 {[%clk 0:00:15.6]} 55... Rd3
{[%clk 0:00:04.7]} 56. h5 {[%clk 0:00:15.6]} 56... Kg5 {[%clk 0:00:05.1]} 57.
Rd5+ {[%clk 0:00:15.4]} 57... Kh6 {[%clk 0:00:03.5]} 58. a4 {[%clk 0:00:15.7]}
58... Rd2 {[%clk 0:00:02.6]} 59. a5 {[%clk 0:00:15.5]} 59... d3 {[%clk
0:00:02.5]} 60. Kg3 {[%clk 0:00:15]} 60... Ra2 {[%clk 0:00:02.8]} 61. Kxg4
{[%clk 0:00:14]} 61... Rxf2 {[%clk 0:00:02.6]} 62. Rxd3 {[%clk 0:00:13.2]} 62...
f5+ {[%clk 0:00:02.9]} 63. Kg3 {[%clk 0:00:13]} 63... Ra2 {[%clk 0:00:03]} 64.
Rd5 {[%clk 0:00:12.9]} 64... Kg5 {[%clk 0:00:02.9]} 65. h6 {[%clk 0:00:11.9]}
65... Kxh6 {[%clk 0:00:03.1]} 66. Rxf5 {[%clk 0:00:11.6]} 66... Kg6 {[%clk
0:00:03.8]} 67. Rb5 {[%clk 0:00:10.3]} 67... Kf6 {[%clk 0:00:04.4]} 68. Kf4
{[%clk 0:00:10]} 68... Ke6 {[%clk 0:00:05]} 69. Rb6+ {[%clk 0:00:10.3]} 69...
Kd7 {[%clk 0:00:05.3]} 70. a6 {[%clk 0:00:11.2]} 70... Kc7 {[%clk 0:00:05.3]}
71. Rh6 {[%clk 0:00:11.7]} 71... Ra4+ {[%clk 0:00:05.7]} 72. Ke5 {[%clk
0:00:11.9]} 72... Kb8 {[%clk 0:00:06.3]} 73. Kd5 {[%clk 0:00:11.4]} 73... Ra1
{[%clk 0:00:06.5]} 74. Kc5 {[%clk 0:00:11.9]} 74... Ka7 {[%clk 0:00:06.3]} 75.
Kb5 {[%clk 0:00:09.7]} 75... Rb1+ {[%clk 0:00:06.5]} 76. Kc4 {[%clk 0:00:10]}
76... Ra1 {[%clk 0:00:06.9]} 77. Rg6 {[%clk 0:00:10.3]} 77... Rxa6 {[%clk
0:00:06.5]} 78. Rxa6+ {[%clk 0:00:10.3]} 78... Kxa6 {[%clk 0:00:07.4]} 1/2-1/2

[Event "Early-Titled-Tuesday-Blitz-April-23-2024"]
[Site "Chess.com"]
[Date "2024.04.23"]
[Round "2"]
[White "Zurability"]
[Black "TheoSlade"]
[Result "1-0"]
[WhiteElo "2730"]
[BlackElo "2406"]
[TimeControl "180+1"]
[EndTime "8:19:52 PDT"]
[Termination "Zurability won by resignation"]

1. d4 {[%clk 0:02:43.6]} 1... d5 {[%clk 0:03:00]} 2. c4 {[%clk 0:02:43.4]} 2...
e6 {[%clk 0:03:00.7]} 3. Nc3 {[%clk 0:02:43.5]} 3... a6 {[%clk 0:03:01.4]} 4.
Nf3 {[%clk 0:02:37.7]} 4... dxc4 {[%clk 0:03:01.3]} 5. g3 {[%clk 0:02:38.3]}
5... b5 {[%clk 0:02:59.3]} 6. Bg2 {[%clk 0:02:38.4]} 6... Bb7 {[%clk 0:02:59.4]}
7. O-O {[%clk 0:02:36.1]} 7... Nf6 {[%clk 0:02:59.7]} 8. a4 {[%clk 0:02:21.3]}
8... c6 {[%clk 0:02:52.2]} 9. Ne5 {[%clk 0:02:18.3]} 9... Nd5 {[%clk 0:02:34.4]}
10. e4 {[%clk 0:02:04.2]} 10... Nxc3 {[%clk 0:02:29]} 11. bxc3 {[%clk
0:02:05.1]} 11... Nd7 {[%clk 0:02:24.3]} 12. f4 {[%clk 0:02:02.5]} 12... Be7
{[%clk 0:02:17.8]} 13. Qg4 {[%clk 0:01:14.6]} 13... O-O {[%clk 0:02:11.8]} 14.
f5 {[%clk 0:01:14.7]} 14... exf5 {[%clk 0:01:59.7]} 15. Qxf5 {[%clk 0:01:00.3]}
15... Nxe5 {[%clk 0:01:55.9]} 16. Qxe5 {[%clk 0:01:01.2]} 16... Bf6 {[%clk
0:01:47.6]} 17. Qc5 {[%clk 0:01:00.9]} 17... Qe7 {[%clk 0:01:40.8]} 18. Ba3
{[%clk 0:00:55.9]} 18... Qxc5 {[%clk 0:01:36.7]} 19. Bxc5 {[%clk 0:00:56.8]}
19... Rfe8 {[%clk 0:01:37.2]} 20. e5 {[%clk 0:00:56.4]} 20... Be7 {[%clk
0:01:36.1]} 21. Bxe7 {[%clk 0:00:48.1]} 21... Rxe7 {[%clk 0:01:36]} 22. Rfd1
{[%clk 0:00:19.1]} 22... Rd8 {[%clk 0:01:34.5]} 23. axb5 {[%clk 0:00:16.7]}
23... axb5 {[%clk 0:01:33.4]} 24. Rdb1 {[%clk 0:00:15.2]} 24... Kf8 {[%clk
0:01:21.2]} 25. Ra7 {[%clk 0:00:14.8]} 25... Ra8 {[%clk 0:01:07.2]} 26. Rba1
{[%clk 0:00:10.3]} 26... Rxa7 {[%clk 0:01:07]} 27. Rxa7 {[%clk 0:00:11.2]} 27...
Ke8 {[%clk 0:00:57.3]} 28. Kf2 {[%clk 0:00:11.2]} 28... Kd8 {[%clk 0:00:54.4]}
29. g4 {[%clk 0:00:10.7]} 29... Kc7 {[%clk 0:00:51.7]} 30. Kg3 {[%clk
0:00:09.2]} 30... Kb6 {[%clk 0:00:40.5]} 31. Ra1 {[%clk 0:00:09.5]} 31... c5
{[%clk 0:00:38]} 32. Bxb7 {[%clk 0:00:05.8]} 32... Rxb7 {[%clk 0:00:36.8]} 33.
d5 {[%clk 0:00:05.2]} 33... b4 {[%clk 0:00:28.5]} 34. Kf4 {[%clk 0:00:05.6]}
34... Kb5 {[%clk 0:00:22.1]} 35. d6 {[%clk 0:00:04.6]} 35... b3 {[%clk 0:00:21]}
36. Ke4 {[%clk 0:00:04.8]} 36... b2 {[%clk 0:00:20.1]} 37. Rb1 {[%clk
0:00:04.9]} 37... Ka4 {[%clk 0:00:20.8]} 38. Kd5 {[%clk 0:00:05.5]} 38... Kb3
{[%clk 0:00:21.2]} 39. Kc6 {[%clk 0:00:06.1]} 39... Ra7 {[%clk 0:00:20.9]} 40.
d7 {[%clk 0:00:06.4]} 40... Ra8 {[%clk 0:00:21.4]} 41. Kb7 {[%clk 0:00:06.2]}
41... Rf8 {[%clk 0:00:20.1]} 42. Kc7 {[%clk 0:00:05.6]} 42... Kc2 {[%clk
0:00:20.5]} 43. Rg1 {[%clk 0:00:05.3]} 43... b1=Q {[%clk 0:00:19.8]} 44. Rxb1
{[%clk 0:00:05.9]} 44... Kxb1 {[%clk 0:00:20.7]} 45. d8=Q {[%clk 0:00:05.7]}
45... Rxd8 {[%clk 0:00:21.4]} 46. Kxd8 {[%clk 0:00:06.6]} 46... Kc2 {[%clk
0:00:21.6]} 47. Ke7 {[%clk 0:00:07.5]} 47... Kxc3 {[%clk 0:00:21.7]} 48. Kxf7
{[%clk 0:00:08]} 48... Kd4 {[%clk 0:00:20.5]} 49. e6 {[%clk 0:00:08.9]} 49... c3
{[%clk 0:00:21]} 50. e7 {[%clk 0:00:09.8]} 50... c2 {[%clk 0:00:21.9]} 51. e8=Q
{[%clk 0:00:10.7]} 51... c1=Q {[%clk 0:00:21.2]} 52. Qd7+ {[%clk 0:00:10.9]}
52... Kc4 {[%clk 0:00:20.3]} 53. Kxg7 {[%clk 0:00:11.8]} 53... Qb2+ {[%clk
0:00:17]} 54. Kxh7 {[%clk 0:00:11.8]} 54... Qxh2+ {[%clk 0:00:17.7]} 55. Kg6
{[%clk 0:00:12.4]} 55... Qc2+ {[%clk 0:00:17.5]} 56. Kg7 {[%clk 0:00:12.9]}
56... Qc3+ {[%clk 0:00:17.5]} 57. Kh6 {[%clk 0:00:13.3]} 57... Qh3+ {[%clk
0:00:17.3]} 58. Kg6 {[%clk 0:00:13.4]} 58... Kb4 {[%clk 0:00:16.1]} 59. Qb7+
{[%clk 0:00:12.8]} 59... Kc3 {[%clk 0:00:16.2]} 60. g5 {[%clk 0:00:13.2]} 60...
Qd3+ {[%clk 0:00:14.5]} 61. Kg7 {[%clk 0:00:13.2]} 61... Qd4+ {[%clk 0:00:14.9]}
62. Kh7 {[%clk 0:00:13.7]} 62... Qh4+ {[%clk 0:00:14.2]} 63. Kg6 {[%clk
0:00:13.6]} 63... c4 {[%clk 0:00:14.8]} 64. Qf3+ {[%clk 0:00:12.8]} 64... Kb2
{[%clk 0:00:14]} 65. Qe2+ {[%clk 0:00:12]} 65... Kb3 {[%clk 0:00:14]} 66. Qe6
{[%clk 0:00:12.4]} 66... Kb4 {[%clk 0:00:12.8]} 67. Qb6+ {[%clk 0:00:12.7]}
67... Ka3 {[%clk 0:00:12.7]} 68. Qa5+ {[%clk 0:00:12.2]} 68... Kb3 {[%clk
0:00:13.3]} 69. Qb5+ {[%clk 0:00:12.6]} 69... Ka3 {[%clk 0:00:13.8]} 70. Qc5+
{[%clk 0:00:10.6]} 70... Kb3 {[%clk 0:00:14.1]} 71. Kf7 {[%clk 0:00:10.9]} 71...
Qf4+ {[%clk 0:00:13]} 72. Kg8 {[%clk 0:00:10.5]} 72... Qe4 {[%clk 0:00:12.3]}
73. Qb5+ {[%clk 0:00:09.8]} 73... Ka3 {[%clk 0:00:12.6]} 74. Qa6+ {[%clk
0:00:10]} 74... Kb3 {[%clk 0:00:13.1]} 75. g6 {[%clk 0:00:10.3]} 75... Qe8+
{[%clk 0:00:13.2]} 76. Kh7 {[%clk 0:00:10.5]} 76... Qe4 {[%clk 0:00:11.9]} 77.
Qb5+ {[%clk 0:00:09.8]} 77... Ka3 {[%clk 0:00:12]} 78. Qc5+ {[%clk 0:00:10]}
78... Kb3 {[%clk 0:00:12.3]} 79. Qb6+ {[%clk 0:00:09.8]} 79... Ka3 {[%clk
0:00:12.6]} 80. Kh8 {[%clk 0:00:10.4]} 80... Qh4+ {[%clk 0:00:09.7]} 81. Kg8
{[%clk 0:00:10.7]} 81... c3 {[%clk 0:00:09]} 82. g7 {[%clk 0:00:04.4]} 82... c2
{[%clk 0:00:09.1]} 83. Qc5+ {[%clk 0:00:05]} 83... Kb3 {[%clk 0:00:08.2]} 84.
Kf7 {[%clk 0:00:05.1]} 84... Qf4+ {[%clk 0:00:06]} 85. Ke7 {[%clk 0:00:04.2]}
85... c1=Q {[%clk 0:00:04.2]} 86. g8=Q+ {[%clk 0:00:04.5]} 86... Qcc4 {[%clk
0:00:02.7]} 87. Qb5+ {[%clk 0:00:02.8]} 87... Kc3 {[%clk 0:00:03.3]} 88. Qa5+
{[%clk 0:00:03.1]} 88... Kb3 {[%clk 0:00:03.6]} 89. Qb5+ {[%clk 0:00:03.4]}
89... Kc3 {[%clk 0:00:03.2]} 90. Qg7+ {[%clk 0:00:04]} 90... Qfd4 {[%clk
0:00:03]} 91. Qa5+ {[%clk 0:00:04.7]} 91... Qb4+ {[%clk 0:00:03.2]} 92. Qxb4+
{[%clk 0:00:05.1]} 92... Kxb4 {[%clk 0:00:02.8]} 93. Qxd4+ {[%clk 0:00:05.8]}
93... Kb5 {[%clk 0:00:03.5]} 94. Qd6 {[%clk 0:00:06.5]} 1-0

[Event "Early-Titled-Tuesday-Blitz-April-23-2024"]
[Site "Chess.com"]
[Date "2024.04.23"]
[Round "2"]
[White "AcostaPablo"]
[Black "eagleclaw07"]
[Result "0-1"]
[WhiteElo "2605"]
[BlackElo "2883"]
[TimeControl "180+1"]
[EndTime "8:19:59 PDT"]
[Termination "eagleclaw07 won by resignation"]

1. e4 {[%clk 0:03:00.9]} 1... c5 {[%clk 0:03:00.1]} 2. Nf3 {[%clk 0:03:01]} 2...
d6 {[%clk 0:03:00.6]} 3. Bb5+ {[%clk 0:03:01.5]} 3... Nd7 {[%clk 0:03:00.6]} 4.
O-O {[%clk 0:02:57.8]} 4... a6 {[%clk 0:02:59]} 5. Bxd7+ {[%clk 0:02:57.9]} 5...
Bxd7 {[%clk 0:02:59]} 6. c4 {[%clk 0:02:58.6]} 6... g6 {[%clk 0:02:55.1]} 7. Nc3
{[%clk 0:02:58.5]} 7... Bg7 {[%clk 0:02:55.6]} 8. d4 {[%clk 0:02:57.1]} 8...
cxd4 {[%clk 0:02:55.1]} 9. Nxd4 {[%clk 0:02:57.1]} 9... Nf6 {[%clk 0:02:55.2]}
10. f3 {[%clk 0:02:55.1]} 10... O-O {[%clk 0:02:55.5]} 11. Be3 {[%clk
0:02:55.1]} 11... e6 {[%clk 0:02:48.1]} 12. Qd2 {[%clk 0:02:50.6]} 12... Qc7
{[%clk 0:02:45]} 13. b3 {[%clk 0:02:48.5]} 13... Rfe8 {[%clk 0:02:44.9]} 14.
Rac1 {[%clk 0:02:45.6]} 14... Rad8 {[%clk 0:02:44.5]} 15. Rfd1 {[%clk
0:02:43.7]} 15... Qb8 {[%clk 0:02:41.2]} 16. Nde2 {[%clk 0:02:24.5]} 16... Bc6
{[%clk 0:02:40.6]} 17. Bf4 {[%clk 0:02:24.2]} 17... Qa7+ {[%clk 0:02:11]} 18.
Qe3 {[%clk 0:02:23.6]} 18... Qxe3+ {[%clk 0:02:09.7]} 19. Bxe3 {[%clk
0:02:23.5]} 19... d5 {[%clk 0:02:09.4]} 20. e5 {[%clk 0:02:23]} 20... Nd7 {[%clk
0:02:08.9]} 21. f4 {[%clk 0:01:48.5]} 21... dxc4 {[%clk 0:02:07.5]} 22. bxc4
{[%clk 0:01:48.4]} 22... f6 {[%clk 0:01:49.6]} 23. exf6 {[%clk 0:01:47.8]} 23...
Nxf6 {[%clk 0:01:46.9]} 24. Nd4 {[%clk 0:01:36.5]} 24... Ng4 {[%clk 0:01:25.9]}
25. Nxc6 {[%clk 0:01:29.9]} 25... bxc6 {[%clk 0:01:25.5]} 26. Bb6 {[%clk
0:01:19.9]} 26... Rxd1+ {[%clk 0:01:17]} 27. Nxd1 {[%clk 0:01:20.1]} 27... e5
{[%clk 0:01:14.4]} 28. h3 {[%clk 0:01:18.3]} 28... Nf6 {[%clk 0:01:11]} 29. fxe5
{[%clk 0:01:18.3]} 29... Nd7 {[%clk 0:01:09.8]} 30. Bd4 {[%clk 0:01:14.7]} 30...
Nxe5 {[%clk 0:01:09.9]} 31. Bxe5 {[%clk 0:01:11.4]} 31... Rxe5 {[%clk 0:01:10]}
32. Kf2 {[%clk 0:01:07.3]} 32... Ra5 {[%clk 0:01:06.6]} 33. Rc2 {[%clk
0:01:07.4]} 33... Bd4+ {[%clk 0:01:06.8]} 34. Ke2 {[%clk 0:01:07.3]} 34... Ra3
{[%clk 0:01:06.7]} 35. Nf2 {[%clk 0:01:04]} 35... Kf7 {[%clk 0:01:06.2]} 36. Nd3
{[%clk 0:01:02.9]} 36... Ke6 {[%clk 0:01:04.3]} 37. Nb4 {[%clk 0:00:59.7]} 37...
c5 {[%clk 0:00:50.3]} 38. Nd5 {[%clk 0:00:49.2]} 38... Ke5 {[%clk 0:00:46.1]}
39. Kd1 {[%clk 0:00:45]} 39... Ke4 {[%clk 0:00:45.3]} 40. Re2+ {[%clk
0:00:34.9]} 40... Kd3 {[%clk 0:00:45.5]} 41. Nb6 {[%clk 0:00:32.7]} 41... Be3
{[%clk 0:00:37.4]} 42. Nd5 {[%clk 0:00:27.1]} 42... Bg5 {[%clk 0:00:28.8]} 43.
Rc2 {[%clk 0:00:26.6]} 43... Ra4 {[%clk 0:00:27.4]} 44. Rc3+ {[%clk 0:00:14.1]}
44... Kd4 {[%clk 0:00:27.2]} 45. Rg3 {[%clk 0:00:14.8]} 45... Bh6 {[%clk
0:00:18.6]} 46. Rg4+ {[%clk 0:00:15.2]} 46... Kd3 {[%clk 0:00:18.8]} 47. Rg3+
{[%clk 0:00:15.9]} 47... Kd4 {[%clk 0:00:15.4]} 48. Rg4+ {[%clk 0:00:16.5]}
48... Ke5 {[%clk 0:00:16.1]} 49. Rh4 {[%clk 0:00:16.9]} 49... Bg5 {[%clk
0:00:15.3]} 50. Rxh7 {[%clk 0:00:17.2]} 50... Rxc4 {[%clk 0:00:14.6]} 51. Nb6
{[%clk 0:00:16.6]} 51... Rc1+ {[%clk 0:00:13.9]} 52. Ke2 {[%clk 0:00:16.6]}
52... Rc2+ {[%clk 0:00:14.5]} 53. Kf3 {[%clk 0:00:17.3]} 53... Rxa2 {[%clk
0:00:12.4]} 54. Rc7 {[%clk 0:00:17.6]} 54... Kd6 {[%clk 0:00:11.7]} 55. Rg7
{[%clk 0:00:16.8]} 55... Bd8 {[%clk 0:00:05.9]} 56. Rxg6+ {[%clk 0:00:16.4]}
56... Ke5 {[%clk 0:00:06.6]} 57. Nc4+ {[%clk 0:00:10.5]} 57... Kd4 {[%clk
0:00:05]} 58. Rg4+ {[%clk 0:00:11.1]} 58... Kc3 {[%clk 0:00:05]} 59. Ne3 {[%clk
0:00:11.2]} 59... Kd3 {[%clk 0:00:04]} 60. Rg7 {[%clk 0:00:09.6]} 60... Bf6
{[%clk 0:00:03.5]} 61. Rd7+ {[%clk 0:00:09.6]} 61... Bd4 {[%clk 0:00:04.2]} 62.
Nf5 {[%clk 0:00:10.1]} 62... Rf2+ {[%clk 0:00:04.5]} 63. Kg4 {[%clk 0:00:09.8]}
63... Rxg2+ {[%clk 0:00:05.3]} 64. Kf4 {[%clk 0:00:10.4]} 64... Rf2+ {[%clk
0:00:05.8]} 65. Kg4 {[%clk 0:00:09.5]} 65... a5 {[%clk 0:00:06.5]} 66. h4 {[%clk
0:00:09.5]} 66... a4 {[%clk 0:00:06.7]} 67. h5 {[%clk 0:00:08]} 67... a3 {[%clk
0:00:07.2]} 68. h6 {[%clk 0:00:07.8]} 68... a2 {[%clk 0:00:04.6]} 69. Nxd4
{[%clk 0:00:07.8]} 69... cxd4 {[%clk 0:00:04.3]} 70. Ra7 {[%clk 0:00:07.2]}
70... Rh2 {[%clk 0:00:03.7]} 71. Kg5 {[%clk 0:00:07.6]} 71... Kc3 {[%clk
0:00:03.2]} 72. Kg6 {[%clk 0:00:07.8]} 72... Kb2 {[%clk 0:00:03.4]} 73. Rb7+
{[%clk 0:00:06.6]} 73... Kc2 {[%clk 0:00:01]} 74. Rc7+ {[%clk 0:00:06.5]} 74...
Kb1 {[%clk 0:00:01.9]} 75. Rb7+ {[%clk 0:00:04.3]} 75... Kc1 {[%clk 0:00:02.8]}
76. Ra7 {[%clk 0:00:03.4]} 76... Kb1 {[%clk 0:00:02.9]} 77. h7 {[%clk
0:00:03.4]} 77... a1=Q {[%clk 0:00:02.7]} 78. Rb7+ {[%clk 0:00:04.1]} 78... Ka2
{[%clk 0:00:03]} 79. Ra7+ {[%clk 0:00:04.2]} 79... Kb1 {[%clk 0:00:03.7]} 80.
Rb7+ {[%clk 0:00:04.7]} 80... Qb2 {[%clk 0:00:04.6]} 81. Rxb2+ {[%clk 0:00:05]}
81... Kxb2 {[%clk 0:00:05.5]} 82. Kg7 {[%clk 0:00:05.8]} 82... Rxh7+ {[%clk
0:00:04.4]} 0-1

[Event "Early-Titled-Tuesday-Blitz-April-23-2024"]
[Site "Chess.com"]
[Date "2024.04.23"]
[Round "2"]
[White "Boxerandchessplayer"]
[Black "Zarinur"]
[Result "0-1"]
[WhiteElo "2222"]
[BlackElo "2504"]
[TimeControl "180+1"]
[EndTime "8:20:00 PDT"]
[Termination "Zarinur won on time"]

1. Nf3 {[%clk 0:03:00.9]} 1... d5 {[%clk 0:02:58.6]} 2. e3 {[%clk 0:03:01.2]}
2... Nf6 {[%clk 0:02:56.7]} 3. c4 {[%clk 0:03:00.8]} 3... e6 {[%clk 0:02:56.8]}
4. Nc3 {[%clk 0:02:58.7]} 4... a6 {[%clk 0:02:55.3]} 5. b3 {[%clk 0:02:57.6]}
5... Be7 {[%clk 0:02:52.9]} 6. Bb2 {[%clk 0:02:57.6]} 6... O-O {[%clk
0:02:53.2]} 7. Be2 {[%clk 0:02:58]} 7... b6 {[%clk 0:02:53.4]} 8. O-O {[%clk
0:02:57.3]} 8... Bb7 {[%clk 0:02:53.9]} 9. Qc2 {[%clk 0:02:56.9]} 9... Nbd7
{[%clk 0:02:54.2]} 10. Rac1 {[%clk 0:02:55.2]} 10... c5 {[%clk 0:02:53.2]} 11.
cxd5 {[%clk 0:02:54.6]} 11... exd5 {[%clk 0:02:52.8]} 12. d4 {[%clk 0:02:54.3]}
12... Rc8 {[%clk 0:02:50.3]} 13. dxc5 {[%clk 0:02:52.3]} 13... bxc5 {[%clk
0:02:50.7]} 14. Rfd1 {[%clk 0:02:52.6]} 14... Bd6 {[%clk 0:02:35.4]} 15. Qb1
{[%clk 0:02:51.8]} 15... Bb8 {[%clk 0:02:30.1]} 16. Qf5 {[%clk 0:01:50]} 16...
Qc7 {[%clk 0:02:22.6]} 17. g3 {[%clk 0:01:50.1]} 17... Rfe8 {[%clk 0:02:12.8]}
18. Na4 {[%clk 0:01:41.3]} 18... Qd6 {[%clk 0:01:10.8]} 19. Ba3 {[%clk
0:01:12.5]} 19... Ba7 {[%clk 0:01:00.7]} 20. Bb2 {[%clk 0:00:31.3]} 20... Qe7
{[%clk 0:00:46.5]} 21. Bd3 {[%clk 0:00:20.4]} 21... g6 {[%clk 0:00:23]} 22. Qf4
{[%clk 0:00:20.5]} 22... Bb8 {[%clk 0:00:19.7]} 23. Qh4 {[%clk 0:00:16.9]} 23...
d4 {[%clk 0:00:20]} 24. e4 {[%clk 0:00:07.8]} 24... Nxe4 {[%clk 0:00:14.1]} 25.
Qxe7 {[%clk 0:00:06.7]} 25... Rxe7 {[%clk 0:00:14.6]} 26. Re1 {[%clk 0:00:07.2]}
26... Rce8 {[%clk 0:00:09.4]} 27. Bxe4 {[%clk 0:00:05.3]} 27... Bxe4 {[%clk
0:00:09.3]} 28. Nd2 {[%clk 0:00:05.2]} 28... Ba7 {[%clk 0:00:09.1]} 29. Nxe4
{[%clk 0:00:03.6]} 29... Rxe4 {[%clk 0:00:10]} 30. Rxe4 {[%clk 0:00:03.8]} 30...
Rxe4 {[%clk 0:00:10.7]} 31. Kf1 {[%clk 0:00:04.5]} 31... f5 {[%clk 0:00:07.5]}
32. Rc2 {[%clk 0:00:02.9]} 32... Kf7 {[%clk 0:00:07.3]} 33. Ba3 {[%clk
0:00:03.3]} 33... Re5 {[%clk 0:00:07.2]} 34. f4 {[%clk 0:00:03.4]} 34... Rd5
{[%clk 0:00:06.7]} 35. Ke1 {[%clk 0:00:03.1]} 35... Ke6 {[%clk 0:00:05.4]} 36.
Kd2 {[%clk 0:00:03.4]} 36... Kd6 {[%clk 0:00:06]} 37. Kd3 {[%clk 0:00:03.8]}
37... Nf6 {[%clk 0:00:06.4]} 38. Nb2 {[%clk 0:00:03.3]} 38... Ne4 {[%clk
0:00:06.3]} 39. Nc4+ {[%clk 0:00:04]} 39... Ke6 {[%clk 0:00:06]} 40. Re2 {[%clk
0:00:04]} 40... Rd8 {[%clk 0:00:05.1]} 41. Nd2 {[%clk 0:00:03.3]} 41... Kd5
{[%clk 0:00:04.4]} 42. Nxe4 {[%clk 0:00:03.6]} 42... fxe4+ {[%clk 0:00:05.3]}
43. Rxe4 {[%clk 0:00:04]} 43... Rc8 {[%clk 0:00:05.8]} 44. Re5+ {[%clk
0:00:04.1]} 44... Kd6 {[%clk 0:00:06.4]} 45. Kc4 {[%clk 0:00:03.5]} 45... Bb6
{[%clk 0:00:06.8]} 46. Rd5+ {[%clk 0:00:03.8]} 46... Kc6 {[%clk 0:00:06.8]} 47.
Bxc5 {[%clk 0:00:03.2]} 47... d3 {[%clk 0:00:05.8]} 48. Rxd3 {[%clk 0:00:03]}
48... Bxc5 {[%clk 0:00:05.8]} 49. Rc3 {[%clk 0:00:03.2]} 49... Kb6 {[%clk
0:00:05.7]} 50. Kd3 {[%clk 0:00:03.5]} 50... Rd8+ {[%clk 0:00:06]} 51. Ke4
{[%clk 0:00:03.6]} 51... Bg1 {[%clk 0:00:03.3]} 52. Rc2 {[%clk 0:00:03]} 52...
Kb5 {[%clk 0:00:03.4]} 53. Ke5 {[%clk 0:00:02.7]} 53... Rd7 {[%clk 0:00:03.5]}
54. Ke6 {[%clk 0:00:03]} 54... Rb7 {[%clk 0:00:03.5]} 55. Rg2 {[%clk 0:00:03.7]}
55... Bd4 {[%clk 0:00:02.9]} 56. Rd2 {[%clk 0:00:03.9]} 56... Bc3 {[%clk
0:00:03.5]} 57. Rc2 {[%clk 0:00:04.4]} 57... Kb4 {[%clk 0:00:04]} 58. g4 {[%clk
0:00:03.5]} 58... a5 {[%clk 0:00:04]} 59. f5 {[%clk 0:00:03.7]} 59... gxf5
{[%clk 0:00:04]} 60. gxf5 {[%clk 0:00:04]} 60... Ba1 {[%clk 0:00:04.2]} 61. Rf2
{[%clk 0:00:04.3]} 61... Rb6+ {[%clk 0:00:03.9]} 62. Kf7 {[%clk 0:00:04.7]}
62... Rf6+ {[%clk 0:00:04.6]} 63. Ke7 {[%clk 0:00:03.9]} 63... Ka3 {[%clk
0:00:03.7]} 64. h4 {[%clk 0:00:03.6]} 64... h5 {[%clk 0:00:03.7]} 65. Kd7 {[%clk
0:00:03.2]} 65... Bb2 {[%clk 0:00:03.7]} 66. Ke7 {[%clk 0:00:03]} 66... Bc3
{[%clk 0:00:03.3]} 67. Rf3 {[%clk 0:00:03]} 67... Bb2 {[%clk 0:00:03.4]} 68. Rf2
{[%clk 0:00:03.6]} 68... Bc3 {[%clk 0:00:03.9]} 69. Rf3 {[%clk 0:00:04.1]} 69...
Be5 {[%clk 0:00:04.2]} 70. Rf2 {[%clk 0:00:04.5]} 70... Bd4 {[%clk 0:00:04.6]}
71. Rf4 {[%clk 0:00:04.4]} 71... Rb6 {[%clk 0:00:04.8]} 72. Rxd4 {[%clk
0:00:04]} 72... Rb7+ {[%clk 0:00:04.2]} 73. Ke6 {[%clk 0:00:04]} 73... Kxa2
{[%clk 0:00:04.8]} 74. Rd5 {[%clk 0:00:04.4]} 74... Ra7 {[%clk 0:00:02.8]} 75.
Rb5 {[%clk 0:00:05]} 75... Ka3 {[%clk 0:00:02.3]} 76. f6 {[%clk 0:00:05]} 76...
a4 {[%clk 0:00:03.1]} 77. bxa4 {[%clk 0:00:04.7]} 77... Kxa4 {[%clk 0:00:04]}
78. Rxh5 {[%clk 0:00:04]} 78... Ra6+ {[%clk 0:00:04.3]} 79. Ke7 {[%clk
0:00:00.6]} 79... Ra7+ {[%clk 0:00:04.8]} 0-1